bitfinex-derivatives/quotes_SOLF0:USTF0_20250830
["timestamp","ask_amount","ask_price","bid_price","bid_amount"]
[1756517790004,0.03364699,203.85,203.82,7.69]
[1756517790405,7.71,203.93,203.82,7.69]
[1756517790704,0.03751384,203.86,203.81,2.85851542]
[1756517791101,0.03751384,203.86,203.82,7.69]
[1756517791302,0.03751384,203.86,203.81,2.85851542]
[1756517792413,0.03751384,203.86,203.82,7.69]
[1756517792813,0.03751384,203.86,203.81,2.85851542]
[1756517793107,0.03751384,203.86,203.82,7.69]
[1756517793313,0.03751384,203.86,203.81,2.85851542]
[1756517793917,7.74751384,203.86,203.77,2.85851542]
[1756517794108,7.74751384,203.86,203.78,7.69]
[1756517794312,7.71,203.86,203.78,7.69]
[1756517794514,0.03494073,203.84,203.78,7.69]
[1756517795014,0.03494073,203.84,203.8,7.69]
[1756517795415,7.71,203.89,203.8,7.69]
[1756517795614,0.03592457,203.84,203.8,7.69]
[1756517795816,0.03592457,203.84,203.79,2.85851542]
[1756517796010,0.03592457,203.84,203.8,7.69]
[1756517796214,0.03592457,203.84,203.79,2.85851542]
[1756517797518,0.03592457,203.84,203.78,2.85851542]
[1756517797817,2.85851542,203.88,203.79,7.56]
[1756517798209,0.03470025,203.83,203.78,2.85851542]
[1756517799311,0.03470025,203.83,203.79,7.56]
[1756517799516,0.03470025,203.83,203.78,2.85851542]
[1756517800219,0.03470025,203.83,203.79,7.56]
[1756517800518,0.03470025,203.83,203.71,329.28]
[1756517800722,0.03470025,203.83,203.77,7.56]
[1756517801021,7.75470025,203.83,203.77,7.56]
[1756517801417,0.03470025,203.83,203.77,7.56]
[1756517804927,0.03470025,203.83,203.77,10.41851542]
[1756517805222,0.03470025,203.83,203.81,7.56]
[1756517805825,0.03470025,203.83,203.8,2.85851542]
[1756517806424,0.03470025,203.83,203.81,7.56]
[1756517806617,0.03470025,203.83,203.79,7.56]
[1756517807322,7.72,203.82,203.75,2.85851542]
[1756517807525,7.72,203.82,203.76,7.56]
[1756517809125,7.72,203.82,203.72,7.56]
[1756517809323,7.72,203.82,203.73,7.56]
[1756517809826,0.03335288,203.8,203.73,7.56]
[1756517815835,0.03335288,203.8,203.76,2.85851542]
[1756517816237,0.03335288,203.8,203.77,7.56]
[1756517816440,0.03335288,203.8,203.76,2.85851542]
[1756517816639,0.03335288,203.8,203.77,7.56]
[1756517817437,0.03335288,203.8,203.7,2.85851542]
[1756517817438,0.03335288,203.8,203.78,2.85851542]
[1756517817640,0.03335288,203.8,203.79,7.56]
[1756517819138,0.53335288,203.8,203.71,10.41851542]
[1756517819343,0.03335288,203.8,203.71,10.41851542]
[1756517821951,7.72,203.73,203.65,7.56]
[1756517822247,2.85851542,203.77,203.65,2.85851542]
[1756517822447,2.85851542,203.77,203.66,7.56]
[1756517822748,0.03754016,203.71,203.65,2.85851542]
[1756517822942,0.03754016,203.71,203.66,7.56]
[1756517823146,0.03754016,203.71,203.68,2.85851542]
[1756517823357,0.03754016,203.71,203.63,7.56]
[1756517823644,0.03754016,203.71,203.67,7.56]
[1756517824150,0.03754016,203.71,203.7,7.56]
[1756517827649,7.72,203.8,203.7,7.56]
[1756517828249,2.85851542,203.79,203.7,7.56]
[1756517828451,2.85851542,203.76,203.66,7.15]
[1756517828656,7.31,203.75,203.66,7.15]
[1756517828954,7.31,203.75,203.69,0.03599229]
[1756517829349,25.38917053,203.82,203.69,0.03599229]
[1756517829350,7.31,203.72,203.69,0.03599229]
[1756517829853,7.31,203.72,203.66,7.15]
[1756517830056,7.31,203.72,203.68,0.03456706]
[1756517833455,2.85851542,203.73,203.68,0.03456706]
[1756517833961,7.31,203.72,203.68,7.18456706]
[1756517835060,2.85851542,203.73,203.68,0.03456706]
[1756517835261,7.31,203.72,203.68,0.03456706]
[1756517835460,10.16851542,203.76,203.69,7.15]
[1756517835764,7.31,203.76,203.69,7.15]
[1756517835962,2.85851542,203.79,203.69,10.00851542]
[1756517836256,2.85851542,203.79,203.7,0.03155567]
[1756517836661,7.31,203.8,203.71,7.15]
[1756517837062,7.31,203.8,203.72,2.85851542]
[1756517837659,7.31,203.84,203.73,7.15]
[1756517838168,7.31,203.84,203.76,0.03684015]
[1756517841367,7.31,203.84,203.76,7.18684015]
[1756517841562,7.31,203.84,203.76,0.03684015]
[1756517841866,7.31,203.8,203.76,0.03684015]
[1756517843372,10.16851542,203.84,203.76,0.03684015]
[1756517843769,7.31,203.84,203.76,0.03684015]
[1756517844172,10.16851542,203.84,203.76,0.03684015]
[1756517849783,7.31,203.84,203.76,0.03684015]
[1756517859189,7.31,203.84,203.77,7.67]
[1756517859394,7.31,203.84,203.77,10.52851542]
[1756517859992,7.31,203.84,203.77,7.67]
[1756517865497,10.39851542,203.88,203.77,7.67]
[1756517866099,10.39851542,203.88,203.8,0.03339439]
[1756517866499,10.39851542,203.88,203.8,7.70339439]
[1756517867304,7.54,203.88,203.8,7.70339439]
[1756517869004,7.54,203.88,203.8,0.03339439]
[1756517870498,7.54,203.86,203.8,0.03339439]
[1756517880316,2.85851542,203.84,203.8,0.03339439]
[1756517880716,7.54,203.83,203.8,0.03339439]
[1756517881114,10.39851542,203.81,203.8,0.03339439]
[1756517882516,7.54,203.81,203.8,0.03339439]
[1756517883020,7.54,203.83,203.8,0.03339439]
[1756517884323,10.39851542,203.87,203.8,7.70339439]
[1756517889927,7.54,203.87,203.8,7.70339439]
[1756517890130,10.41851542,203.9,203.81,7.48]
[1756517890725,10.41851542,203.9,203.83,0.03339538]
[1756517896831,7.56,203.9,203.84,7.48]
[1756517897829,7.56,203.94,203.84,7.48]
[1756517898033,37.32,203.96,203.87,7.48]
[1756517898440,7.56,203.95,203.87,7.48]
[1756517898733,7.56,203.95,203.89,0.0361557]
[1756517900524,7.56,203.92,203.89,0.0361557]
[1756517901033,10.41851542,203.9,203.89,0.0361557]
[1756517903238,7.56,203.86,203.79,7.48]
[1756517904334,0.033555,203.85,203.79,7.48]
[1756517916640,7.56,203.83,203.73,7.48]
[1756517916837,7.24,203.8,203.73,7.48]
[1756517917231,0.03158636,203.79,203.73,7.48]
[1756517921147,2.85851542,203.78,203.73,7.48]
[1756517921339,7.24,203.77,203.68,7.31]
[1756517922040,0.03282567,203.75,203.68,7.31]
[1756517932250,0.03282567,203.75,203.71,7.31]
[1756517932549,335.26917053,203.86,203.74,7.31]
[1756517932550,7.24,203.85,203.74,7.31]
[1756517932750,329.82,203.86,203.78,7.31]
[1756517933546,329.82,203.86,203.8,0.03180821]
[1756517933952,329.82,203.86,203.8,7.34180821]
[1756517935152,0.03465531,203.85,203.8,7.34180821]
[1756517935357,0.03465531,203.85,203.81,7.31]
[1756517936153,0.03465531,203.85,203.8,0.03180821]
[1756517937356,0.03465531,203.85,203.81,7.31]
[1756517939461,0.03465531,203.85,203.8,2.89032363]
[1756517939961,0.03465531,203.85,203.8,0.03180821]
[1756517940359,0.03465531,203.85,203.81,7.31]
[1756517940551,0.03465531,203.85,203.8,0.03180821]
[1756517940751,7.24,203.84,203.8,7.34180821]
[1756517940957,0.03465531,203.85,203.8,0.03180821]
[1756517941158,7.24,203.84,203.8,7.34180821]
[1756517942660,0.03465531,203.85,203.81,7.31]
[1756517942865,0.03465531,203.85,203.8,0.03180821]
[1756517943066,0.03465531,203.85,203.81,7.31]
[1756517943365,0.03465531,203.85,203.8,0.03180821]
[1756517943659,0.03465531,203.85,203.81,7.31]
[1756517944058,0.03465531,203.85,203.8,2.89032363]
[1756517944452,0.03465531,203.85,203.81,7.31]
[1756517944658,0.03465531,203.85,203.8,2.89032363]
[1756517944954,0.03465531,203.85,203.81,7.31]
[1756517945159,0.03465531,203.85,203.8,2.89032363]
[1756517945360,0.03465531,203.85,203.81,7.31]
[1756517945560,0.03465531,203.85,203.8,2.89032363]
[1756517946062,0.03465531,203.85,203.81,7.31]
[1756517946363,0.03465531,203.85,203.8,2.89032363]
[1756517946564,0.03465531,203.85,203.81,7.31]
[1756517946867,0.03465531,203.85,203.8,2.89032363]
[1756517947163,0.03465531,203.85,203.81,7.27]
[1756517947363,0.03465531,203.85,203.8,2.89032363]
[1756517948354,0.03465531,203.85,203.81,7.27]
[1756517948555,0.03465531,203.85,203.8,2.89032363]
[1756517948865,0.03465531,203.85,203.81,7.27]
[1756517949065,0.03465531,203.85,203.8,2.89032363]
[1756517949867,0.03465531,203.85,203.8,0.03180821]
[1756517951560,0.03465531,203.85,203.81,7.27]
[1756517951770,0.03465531,203.85,203.8,0.03180821]
[1756517951956,0.03465531,203.85,203.81,7.27]
[1756517952566,0.03465531,203.85,203.8,0.03180821]
[1756517952868,0.03465531,203.85,203.81,7.27]
[1756517953858,0.03465531,203.85,203.8,0.03180821]
[1756517954361,0.03465531,203.85,203.81,7.27]
[1756517954570,0.03465531,203.85,203.8,0.03180821]
[1756517954769,0.03465531,203.85,203.81,7.27]
[1756517955162,0.03465531,203.85,203.8,0.03180821]
[1756517956367,0.03465531,203.85,203.81,7.27]
[1756517956559,0.03465531,203.85,203.8,0.03180821]
[1756517956758,0.03465531,203.85,203.81,7.27]
[1756517957364,0.03465531,203.85,203.8,0.03180821]
[1756517957568,0.03465531,203.85,203.81,7.27]
[1756517958367,0.03465531,203.85,203.8,0.03180821]
[1756517958568,0.03465531,203.85,203.81,7.27]
[1756517958966,0.03465531,203.85,203.8,0.03180821]
[1756517959173,0.03465531,203.85,203.81,7.27]
[1756517959366,0.03465531,203.85,203.8,0.03180821]
[1756517959569,0.03465531,203.85,203.81,7.27]
[1756517959758,0.03465531,203.85,203.8,0.03180821]
[1756517959965,7.2,203.84,203.8,0.03180821]
[1756517960272,0.03465531,203.85,203.8,0.03180821]
[1756517960764,7.2,203.84,203.8,0.03180821]
[1756517961068,7.2,203.84,203.81,7.27]
[1756517961469,7.2,203.84,203.8,0.03180821]
[1756517961864,0.03465531,203.85,203.8,0.03180821]
[1756517962064,7.2,203.84,203.8,0.03180821]
[1756517962364,0.03465531,203.85,203.8,0.03180821]
[1756517962565,2.85851542,203.83,203.8,0.03180821]
[1756517962972,7.2,203.82,203.8,0.03180821]
[1756517963271,2.85851542,203.83,203.8,0.03180821]
[1756517963565,7.2,203.82,203.8,0.03180821]
[1756517963770,2.85851542,203.83,203.8,0.03180821]
[1756517964462,3.35851542,203.83,203.8,0.03180821]
[1756517964666,7.2,203.82,203.8,0.03180821]
[1756517964866,3.35851542,203.83,203.72,7.27]
[1756517964867,123.68,203.81,203.72,7.27]
[1756517965063,2.85851542,203.78,203.72,7.27]
[1756517965267,10.05851542,203.78,203.72,7.27]
[1756517965464,10.05851542,203.78,203.68,7.27]
[1756517966172,0.03119599,203.75,203.68,7.27]
[1756517971777,7.2,203.74,203.68,7.27]
[1756517975689,0.03119599,203.75,203.68,7.27]
[1756517977591,0.03119599,203.75,203.69,7.41]
[1756517980992,0.03119599,203.75,203.71,2.85851542]
[1756517981191,0.03119599,203.75,203.72,7.41]
[1756517981391,7.75,203.8,203.72,7.41]
[1756517981587,0.03334784,203.76,203.71,2.85851542]
[1756517981793,0.03334784,203.76,203.72,7.41]
[1756517982196,0.03334784,203.76,203.71,2.85851542]
[1756517982588,0.03334784,203.76,203.72,7.41]
[1756517983291,7.75,203.75,203.72,7.41]
[1756517986900,0.03334784,203.76,203.68,2.85851542]
[1756517987101,0.03334784,203.76,203.69,7.41]
[1756517987702,10.60851542,203.75,203.69,7.41]
[1756517989704,7.75,203.75,203.69,7.41]
[1756517990300,0.03334784,203.76,203.69,7.41]
[1756517990899,0.03334784,203.76,203.7,2.85851542]
[1756517991100,0.03334784,203.76,203.71,7.41]
[1756517993702,0.03334784,203.76,203.74,7.41]
[1756517994104,7.75,203.82,203.74,7.41]
[1756517994306,0.03094699,203.77,203.74,7.41]
[1756517994703,0.03094699,203.77,203.73,2.85851542]
[1756517995308,0.03094699,203.77,203.74,7.41]
[1756517995697,0.03094699,203.77,203.73,2.85851542]
[1756517996403,0.03094699,203.77,203.74,7.41]
[1756517996602,329.9,203.87,203.76,2.85851542]
[1756517996805,337.68,203.87,203.77,7.41]
[1756517997798,2.85851542,203.85,203.77,7.41]
[1756517998003,7.78,203.84,203.8,0.03185267]
[1756517998404,2.85851542,203.85,203.8,0.03185267]
[1756517998808,7.78,203.84,203.8,0.03185267]
[1756517999108,2.85851542,203.85,203.8,0.03185267]
[1756517999299,7.78,203.84,203.8,0.03185267]
[1756517999499,2.85851542,203.85,203.8,0.03185267]
[1756517999710,7.78,203.84,203.8,0.03185267]
[1756517999911,2.85851542,203.85,203.8,0.03185267]
[1756518000212,7.78,203.84,203.8,0.03185267]
[1756518000511,2.85851542,203.82,203.8,0.03185267]
[1756518000711,7.78,203.81,203.8,0.03185267]
[1756518002105,131.18,203.83,203.8,0.03185267]
[1756518002308,7.78,203.83,203.8,0.03185267]
[1756518002507,7.78,203.83,203.8,7.44185267]
[1756518002705,0.03730618,203.84,203.8,0.03185267]
[1756518002906,0.03730618,203.84,203.81,7.41]
[1756518003202,7.81730618,203.84,203.8,0.03185267]
[1756518003409,7.81730618,203.84,203.81,7.41]
[1756518004207,123.39730618,203.84,203.8,0.03185267]
[1756518004606,2.85851542,203.83,203.8,0.03185267]
[1756518004805,7.78,203.82,203.8,0.03185267]
[1756518005408,2.85851542,203.83,203.8,0.03185267]
[1756518006108,7.78,203.82,203.8,0.03185267]
[1756518006703,7.18,203.82,203.8,0.03185267]
[1756518006907,2.85851542,203.83,203.8,0.03185267]
[1756518007310,7.18,203.82,203.8,0.03185267]
[1756518007510,7.18,203.82,203.71,7.78]
[1756518007511,7.68,203.82,203.71,7.78]
[1756518007708,7.18,203.77,203.71,7.78]
[1756518007908,130.5,203.77,203.71,7.78]
[1756518008308,130.5,203.77,203.67,10.63851542]
[1756518008812,0.0372814,203.74,203.67,10.63851542]
[1756518009013,0.0372814,203.74,203.67,7.78]
[1756518009214,7.2172814,203.74,203.67,7.78]
[1756518009808,2.85851542,203.72,203.61,10.63851542]
[1756518010008,123.32,203.71,203.62,7.78]
[1756518010518,0.03486986,203.69,203.62,7.78]
[1756518011518,7.21486986,203.69,203.62,7.78]
[1756518013717,0.03486986,203.69,203.62,10.63851542]
[1756518014016,0.03486986,203.69,203.63,7.78]
[1756518038142,0.03486986,203.69,203.63,10.63851542]
[1756518038338,7.59,203.81,203.67,7.6]
[1756518038545,2.85851542,203.78,203.67,7.6]
[1756518039547,2.85851542,203.78,203.7,0.03364732]
[1756518039748,2.85851542,203.78,203.71,7.6]
[1756518040944,2.85851542,203.81,203.71,7.6]
[1756518041948,7.59,203.8,203.71,7.6]
[1756518043051,2.85851542,203.78,203.71,7.6]
[1756518043248,7.59,203.77,203.71,7.6]
[1756518060264,2.85851542,203.78,203.71,7.6]
[1756518060559,7.59,203.79,203.71,7.6]
[1756518060762,10.44851542,203.82,203.71,2.85851542]
[1756518060966,10.44851542,203.82,203.72,7.6]
[1756518061359,7.59,203.78,203.75,0.03285444]
[1756518061955,2.85851542,203.79,203.75,0.03285444]
[1756518062255,7.59,203.78,203.75,0.03285444]
[1756518063165,2.85851542,203.79,203.75,0.03285444]
[1756518063460,7.59,203.78,203.75,0.03285444]
[1756518063857,2.85851542,203.79,203.75,0.03285444]
[1756518064864,7.59,203.78,203.75,0.03285444]
[1756518065366,2.85851542,203.79,203.75,0.03285444]
[1756518065570,7.59,203.78,203.75,0.03285444]
[1756518065864,2.85851542,203.79,203.75,0.03285444]
[1756518066263,7.59,203.78,203.75,0.03285444]
[1756518066765,2.85851542,203.79,203.75,0.03285444]
[1756518067461,2.85851542,203.76,203.62,13.42346299]
[1756518067661,0.03496378,203.79,203.62,13.42346299]
[1756518067662,7.2,203.7,203.62,7.92]
[1756518068866,0.03230118,203.68,203.62,7.92]
[1756518071572,7.23230118,203.68,203.62,7.92]
[1756518071871,10.0908166,203.68,203.62,7.92]
[1756518073970,2.8908166,203.68,203.55,7.92]
[1756518074177,2.85851542,203.64,203.55,7.92]
[1756518074574,0.03765996,203.62,203.55,7.92]
[1756518093480,7.23765996,203.62,203.55,7.92]
[1756518094185,0.03765996,203.62,203.55,7.92]
[1756518097284,0.03765996,203.62,203.57,1.83427575]
[1756518097481,0.03765996,203.62,203.58,7.66]
[1756518097684,0.03765996,203.62,203.57,1.83427575]
[1756518098792,0.03765996,203.62,203.58,7.66]
[1756518099193,7.36765996,203.62,203.56,1.83427575]
[1756518099383,7.36765996,203.62,203.56,9.49427575]
[1756518099589,7.33,203.62,203.56,9.49427575]
[1756518099790,0.03483311,203.61,203.56,9.49427575]
[1756518099991,0.03483311,203.61,203.56,1.83427575]
[1756518100188,0.03483311,203.61,203.57,7.66]
[1756518100390,0.03483311,203.61,203.56,1.83427575]
[1756518100590,0.03483311,203.61,203.57,7.66]
[1756518100885,0.03483311,203.61,203.56,1.83427575]
[1756518101192,0.03483311,203.61,203.57,7.66]
[1756518102591,0.03483311,203.61,203.56,1.83427575]
[1756518102991,0.03483311,203.61,203.57,7.66]
[1756518103183,7.36483311,203.61,203.57,7.66]
[1756518104093,7.36483311,203.61,203.56,1.83427575]
[1756518104293,7.36483311,203.61,203.57,7.66]
[1756518104790,0.03483311,203.61,203.56,1.83427575]
[1756518105194,0.03483311,203.61,203.57,7.66]
[1756518105388,0.03483311,203.61,203.56,1.83427575]
[1756518105887,0.03483311,203.61,203.57,7.66]
[1756518106083,0.03483311,203.61,203.56,1.83427575]
[1756518106283,1.83427575,203.59,203.5,7.66]
[1756518106583,1.83427575,203.59,203.54,7.66]
[1756518106789,1.83427575,203.59,203.5,7.66]
[1756518106992,0.03376779,203.57,203.49,0.85451197]
[1756518107289,0.03376779,203.57,203.54,7.66]
[1756518107494,0.03376779,203.57,203.53,1.83427575]
[1756518107794,0.03376779,203.57,203.54,7.66]
[1756518108289,0.03376779,203.57,203.54,1.83427575]
[1756518108489,0.03376779,203.57,203.55,7.66]
[1756518108993,0.03376779,203.57,203.54,1.83427575]
[1756518109388,0.03376779,203.57,203.55,7.66]
[1756518109593,0.03376779,203.57,203.54,1.83427575]
[1756518110089,0.03376779,203.57,203.56,9.49427575]
[1756518113396,0.03376779,203.57,203.56,7.66]
[1756518113598,0.03376779,203.57,203.56,9.49427575]
[1756518114098,0.03376779,203.57,203.56,7.66]
[1756518114298,0.03376779,203.57,203.56,9.49427575]
[1756518115394,0.03376779,203.57,203.56,7.66]
[1756518115593,0.03376779,203.57,203.56,9.49427575]
[1756518116899,0.03376779,203.57,203.56,7.66]
[1756518117198,0.03376779,203.57,203.56,9.49427575]
[1756518120595,0.03376779,203.57,203.56,7.66]
[1756518120899,0.03376779,203.57,203.56,9.49427575]
[1756518121403,0.03376779,203.57,203.54,9.49427575]
[1756518121902,0.03376779,203.57,203.55,7.66]
[1756518122099,0.03376779,203.57,203.54,1.83427575]
[1756518123103,0.03376779,203.57,203.52,7.66]
[1756518123294,0.03376779,203.57,203.56,7.66]
[1756518125204,0.03376779,203.57,203.56,9.49427575]
[1756518129113,0.03376779,203.57,203.56,7.66]
[1756518139520,68.7352,203.65,203.56,7.66]
[1756518139719,68.723,203.69,203.63,1.83427575]
[1756518139922,68.723,203.69,203.64,7.81]
[1756518140221,75.933,203.69,203.63,9.64427575]
[1756518140821,1.83427575,203.7,203.63,9.64427575]
[1756518141022,330.12,203.73,203.55,8.18149142]
[1756518141023,9.04427575,203.72,203.66,7.81]
[1756518142326,1.83427575,203.72,203.67,0.03118499]
[1756518142826,7.21,203.71,203.67,0.03118499]
[1756518143026,1.83427575,203.72,203.67,0.03118499]
[1756518143222,7.21,203.75,203.68,7.81]
[1756518143421,7.21,203.75,203.7,1.83427575]
[1756518143627,1.83427575,203.76,203.7,1.83427575]
[1756518143826,1.83427575,203.74,203.68,1.83427575]
[1756518144127,7.21,203.73,203.67,9.64427575]
[1756518144326,7.21,203.73,203.69,0.03168543]
[1756518144527,7.21,203.73,203.7,7.81]
[1756518144827,1.83427575,203.74,203.7,7.81]
[1756518145028,7.21,203.73,203.7,7.81]
[1756518145424,7.21,203.77,203.7,7.81]
[1756518146430,7.21,203.8,203.7,7.81]
[1756518146930,7.21,203.8,203.73,7.81]
[1756518147230,7.21,203.8,203.73,7.84260628]
[1756518147929,7.21,203.84,203.75,2.86286501]
[1756518148128,7.21,203.84,203.76,7.81]
[1756518148529,10.07286501,203.9,203.79,7.81]
[1756518148725,7.21,203.86,203.74,2.86286501]
[1756518148931,2.86286501,203.84,203.74,2.86286501]
[1756518149231,7.21,203.83,203.74,2.86286501]
[1756518149431,7.21,203.83,203.75,7.81]
[1756518150925,2.86286501,203.82,203.75,7.81]
[1756518151231,7.21,203.81,203.7,7.81]
[1756518152431,7.21,203.81,203.72,2.86286501]
[1756518152631,7.21,203.81,203.73,7.81]
[1756518153427,7.21,203.81,203.75,0.0328667]
[1756518154027,7.21,203.81,203.75,7.8428667]
[1756518154230,7.21,203.84,203.75,7.8428667]
[1756518154637,2.86286501,203.82,203.75,7.8428667]
[1756518154837,7.21,203.81,203.75,7.8428667]
[1756518157336,7.23,203.85,203.75,7.8428667]
[1756518157537,0.03551552,203.8,203.75,7.8428667]
[1756518157939,0.03551552,203.8,203.76,2.86286501]
[1756518158338,0.03551552,203.8,203.77,7.58]
[1756518158735,0.03551552,203.8,203.76,2.86286501]
[1756518158940,0.03551552,203.8,203.77,7.58]
[1756518159443,0.03551552,203.8,203.76,2.86286501]
[1756518159641,0.03551552,203.8,203.77,7.58]
[1756518159945,7.26551552,203.8,203.76,7.58]
[1756518161347,0.03551552,203.8,203.75,0.0328667]
[1756518161849,0.03551552,203.8,203.76,7.58]
[1756518162241,0.03551552,203.8,203.75,0.0328667]
[1756518162449,0.03551552,203.8,203.76,7.58]
[1756518162749,0.03551552,203.8,203.75,0.0328667]
[1756518163343,0.03551552,203.8,203.76,7.58]
[1756518163542,0.03551552,203.8,203.75,0.0328667]
[1756518163845,0.03551552,203.8,203.76,7.58]
[1756518164047,0.03551552,203.8,203.75,0.0328667]
[1756518164447,0.03551552,203.8,203.76,7.58]
[1756518164647,0.03551552,203.8,203.75,0.0328667]
[1756518164946,14.3,203.88,203.78,7.58]
[1756518164947,7.23,203.88,203.78,7.58]
[1756518165144,7.23,203.88,203.82,7.58]
[1756518166046,10.09286501,203.92,203.82,7.58]
[1756518166253,7.23,203.92,203.83,0.03675657]
[1756518167550,7.23,203.92,203.84,10.44286501]
[1756518170553,7.23,203.92,203.84,7.58]
[1756518180853,2.86286501,203.98,203.86,2.86286501]
[1756518181163,7.23,203.97,203.87,7.58]
[1756518181566,7.23,203.97,203.9,0.03152752]
[1756518181868,7.23,203.94,203.9,0.03152752]
[1756518182266,7.23,203.91,203.9,0.03152752]
[1756518186866,2.86286501,203.98,203.9,0.03152752]
[1756518187066,129.24,203.97,203.9,0.03152752]
[1756518191072,7.42,203.97,203.9,0.03152752]
[1756518191278,121.78,203.96,203.9,0.03152752]
[1756518191973,7.42,203.95,203.9,0.03152752]
[1756518192976,121.78,203.96,203.9,0.03152752]
[1756518193377,7.42,203.95,203.9,0.03152752]
[1756518194476,10.28286501,203.95,203.9,0.03152752]
[1756518194970,7.42,203.95,203.9,0.03152752]
[1756518201489,7.42,203.99,203.9,0.03152752]
[1756518201682,7.42,203.97,203.9,0.03152752]
[1756518202585,7.42,203.93,203.9,0.03152752]
[1756518202785,7.42,203.9,203.8,10.43286501]
[1756518203084,2.86286501,203.91,203.8,10.43286501]
[1756518203590,7.42,203.9,203.8,10.43286501]
[1756518203988,7.42,203.9,203.83,0.03735166]
[1756518204490,7.42,203.87,203.83,0.03735166]
[1756518204685,7.42,203.85,203.83,0.03735166]
[1756518205091,121.7,203.86,203.83,0.03735166]
[1756518205293,7.42,203.85,203.83,0.03735166]
[1756518205493,121.7,203.86,203.83,0.03735166]
[1756518205687,7.42,203.85,203.83,0.03735166]
[1756518206084,121.7,203.86,203.83,0.03735166]
[1756518206490,7.42,203.85,203.83,0.03735166]
[1756518206988,121.7,203.86,203.83,0.03735166]
[1756518207889,7.42,203.85,203.83,0.03735166]
[1756518208196,10.28286501,203.85,203.74,7.57]
[1756518208495,7.42,203.81,203.74,7.57]
[1756518208790,7.42,203.79,203.74,7.57]
[1756518208989,7.42,203.79,203.7,7.57]
[1756518209491,0.0341169,203.77,203.7,7.57]
[1756518209794,0.0341169,203.77,203.72,0.03449712]
[1756518209987,7.4541169,203.77,203.73,7.57]
[1756518211690,0.0341169,203.77,203.72,0.03449712]
[1756518211895,7.42,203.76,203.72,7.60449712]
[1756518212095,7.42,203.76,203.73,7.57]
[1756518212395,7.42,203.76,203.72,7.60449712]
[1756518213593,7.42,203.76,203.72,0.03449712]
[1756518213890,7.42,203.75,203.72,0.03449712]
[1756518214290,2.86286501,203.76,203.72,0.03449712]
[1756518214693,7.42,203.75,203.72,0.03449712]
[1756518214895,129.1,203.74,203.72,0.03449712]
[1756518215095,7.42,203.74,203.72,0.03449712]
[1756518215291,121.7,203.75,203.72,0.03449712]
[1756518216389,7.42,203.74,203.72,0.03449712]
[1756518216991,7.43,203.74,203.72,0.03449712]
[1756518217291,32.52,203.75,203.72,0.03449712]
[1756518217491,56.36,203.75,203.72,0.03449712]
[1756518217695,2.86286501,203.76,203.72,0.03449712]
[1756518217896,25.44,203.75,203.72,0.03449712]
[1756518218096,7.43,203.74,203.72,0.03449712]
[1756518218591,2.86286501,203.74,203.72,0.03449712]
[1756518218895,7.43,203.73,203.72,0.03449712]
[1756518219796,98.45,203.73,203.72,0.03449712]
[1756518220994,129.11,203.73,203.72,0.03449712]
[1756518222295,7.43,203.73,203.72,0.03449712]
[1756518222696,51.25,203.73,203.72,0.03449712]
[1756518228997,0.0341169,203.77,203.72,0.03449712]
[1756518229198,88.18286501,203.76,203.72,0.03449712]
[1756518229400,7.43,203.75,203.72,0.03449712]
[1756518229797,10.29286501,203.73,203.72,0.03449712]
[1756518230202,7.43,203.72,203.59,7.62]
[1756518230501,7.43,203.67,203.59,7.62]
[1756518230696,16.62,203.69,203.59,7.62]
[1756518231502,0.03324678,203.66,203.59,7.62]
[1756518245817,5.44917053,203.83,203.65,7.62]
[1756518246020,2.86286501,203.78,203.65,7.62]
[1756518246316,2.86286501,203.75,203.65,7.62]
[1756518246517,10.88471376,203.74,203.65,7.62]
[1756518246715,3.45471376,203.73,203.65,7.62]